[Event "Late-Titled-Tuesday-Blitz-June-04-2024"]
[Site "Chess.com"]
[Date "2024.06.04"]
[Round "3"]
[White "Defenstrator"]
[Black "MikeSailer"]
[Result "1-0"]
[WhiteElo "2380"]
[BlackElo "2124"]
[TimeControl "180+1"]
[EndTime "14:25:31 PDT"]
[Termination "Defenstrator won by resignation"]

1. d4 {[%clk 0:03:00.8]} 1... d5 {[%clk 0:02:50.1]} 2. Nf3 {[%clk 0:03:00.8]}
2... Nf6 {[%clk 0:02:46]} 3. g3 {[%clk 0:02:51]} 3... g6 {[%clk 0:02:42.7]} 4.
Bg2 {[%clk 0:02:50.7]} 4... Bg7 {[%clk 0:02:42.5]} 5. O-O {[%clk 0:02:50.7]}
5... O-O {[%clk 0:02:42.8]} 6. c4 {[%clk 0:02:45.5]} 6... c6 {[%clk 0:02:41.2]}
7. Nc3 {[%clk 0:02:39.5]} 7... b6 {[%clk 0:02:38.7]} 8. Ne5 {[%clk 0:02:35.9]}
8... Bb7 {[%clk 0:02:37]} 9. e4 {[%clk 0:02:20.5]} 9... dxe4 {[%clk 0:02:31.9]}
10. Nxe4 {[%clk 0:02:20.4]} 10... Nxe4 {[%clk 0:02:26.5]} 11. Bxe4 {[%clk
0:02:21.3]} 11... a5 {[%clk 0:02:07.2]} 12. Be3 {[%clk 0:02:13.8]} 12... Ra7
{[%clk 0:02:04.8]} 13. Qf3 {[%clk 0:02:06.4]} 13... Qc8 {[%clk 0:01:56]} 14. h4
{[%clk 0:01:48.4]} 14... c5 {[%clk 0:01:53.2]} 15. dxc5 {[%clk 0:01:28.4]} 15...
bxc5 {[%clk 0:01:44.2]} 16. Nd3 {[%clk 0:01:17.3]} 16... Nd7 {[%clk 0:01:40.1]}
17. Rad1 {[%clk 0:01:09.2]} 17... Ne5 {[%clk 0:01:33.8]} 18. Nxe5 {[%clk
0:01:07.5]} 18... Bxe5 {[%clk 0:01:33.9]} 19. Bxb7 {[%clk 0:01:06.5]} 19... Rxb7
{[%clk 0:01:31]} 20. Bxc5 {[%clk 0:01:05.7]} 20... Rxb2 {[%clk 0:01:27.2]} 21.
Bxe7 {[%clk 0:01:05.6]} 21... Re8 {[%clk 0:01:23.9]} 22. Bf6 {[%clk 0:01:01.4]}
22... Bxf6 {[%clk 0:01:20.8]} 23. Qxf6 {[%clk 0:01:01.4]} 23... Qxc4 {[%clk
0:01:15]} 24. Qxb2 {[%clk 0:01:01.4]} 1-0

[Event "Late-Titled-Tuesday-Blitz-June-04-2024"]
[Site "Chess.com"]
[Date "2024.06.04"]
[Round "3"]
[White "mohssenbinaddi"]
[Black "ChessSwole"]
[Result "0-1"]
[WhiteElo "2319"]
[BlackElo "2702"]
[TimeControl "180+1"]
[EndTime "14:25:39 PDT"]
[Termination "ChessSwole won by resignation"]

1. Nf3 {[%clk 0:03:00.9]} 1... Nf6 {[%clk 0:02:58.7]} 2. g3 {[%clk 0:03:01]}
2... g6 {[%clk 0:02:58.8]} 3. Bg2 {[%clk 0:03:01.4]} 3... Bg7 {[%clk 0:02:59.4]}
4. O-O {[%clk 0:03:01.8]} 4... c5 {[%clk 0:02:59.9]} 5. c3 {[%clk 0:03:00.1]}
5... O-O {[%clk 0:02:59.2]} 6. d4 {[%clk 0:03:00.9]} 6... cxd4 {[%clk
0:02:53.2]} 7. cxd4 {[%clk 0:03:00.8]} 7... d6 {[%clk 0:02:53.1]} 8. Nc3 {[%clk
0:03:01.3]} 8... Nc6 {[%clk 0:02:50.9]} 9. h3 {[%clk 0:03:00.8]} 9... e5 {[%clk
0:02:46.4]} 10. dxe5 {[%clk 0:02:56]} 10... dxe5 {[%clk 0:02:44.8]} 11. Qxd8
{[%clk 0:02:55.6]} 11... Rxd8 {[%clk 0:02:45.7]} 12. Bg5 {[%clk 0:02:55.2]}
12... h6 {[%clk 0:02:40.6]} 13. Be3 {[%clk 0:02:49.3]} 13... Be6 {[%clk
0:02:30.4]} 14. Rfd1 {[%clk 0:02:43.4]} 14... Nd5 {[%clk 0:02:23]} 15. Nxd5
{[%clk 0:02:34.2]} 15... Bxd5 {[%clk 0:02:23.9]} 16. Nd2 {[%clk 0:02:08.7]}
16... Bxg2 {[%clk 0:02:24.8]} 17. Kxg2 {[%clk 0:02:08.4]} 17... Nd4 {[%clk
0:02:20.7]} 18. Bxd4 {[%clk 0:02:08]} 18... exd4 {[%clk 0:02:21.5]} 19. Ne4
{[%clk 0:01:58.5]} 19... Re8 {[%clk 0:02:15.6]} 20. Kf3 {[%clk 0:01:51.4]} 20...
Re7 {[%clk 0:02:09]} 21. Rac1 {[%clk 0:01:50.1]} 21... Rae8 {[%clk 0:02:07.3]}
22. Nd6 {[%clk 0:01:49.1]} 22... Rd8 {[%clk 0:02:07.6]} 23. Nb5 {[%clk
0:01:41.8]} 23... a6 {[%clk 0:02:06.3]} 24. Na3 {[%clk 0:01:38.5]} 24... d3
{[%clk 0:01:53]} 25. Nc4 {[%clk 0:01:32]} 25... Rxe2 {[%clk 0:01:45]} 26. Rxd3
{[%clk 0:01:30.8]} 26... Rxf2+ {[%clk 0:01:39.4]} 27. Kxf2 {[%clk 0:01:30.5]}
27... Rxd3 {[%clk 0:01:40.2]} 28. Rc2 {[%clk 0:01:27.2]} 28... Bd4+ {[%clk
0:01:37.1]} 29. Kg2 {[%clk 0:01:24.2]} 29... Kg7 {[%clk 0:01:33.6]} 30. Nd6
{[%clk 0:01:22.9]} 30... b5 {[%clk 0:01:30]} 31. Ne8+ {[%clk 0:01:18.8]} 31...
Kf8 {[%clk 0:01:29.3]} 32. Nc7 {[%clk 0:01:19.3]} 32... Be5 {[%clk 0:01:23.9]}
33. Nxa6 {[%clk 0:01:13.2]} 33... Rxg3+ {[%clk 0:01:24]} 34. Kf1 {[%clk
0:01:07.4]} 34... Rxh3 {[%clk 0:01:22.9]} 0-1

[Event "Late-Titled-Tuesday-Blitz-June-04-2024"]
[Site "Chess.com"]
[Date "2024.06.04"]
[Round "3"]
[White "merinasian"]
[Black "AradNazari"]
[Result "0-1"]
[WhiteElo "2481"]
[BlackElo "2736"]
[TimeControl "180+1"]
[EndTime "14:25:40 PDT"]
[Termination "AradNazari won by resignation"]

1. d4 {[%clk 0:03:00.9]} 1... c6 {[%clk 0:03:00]} 2. Nf3 {[%clk 0:02:59.7]} 2...
Na6 {[%clk 0:03:00.5]} 3. c4 {[%clk 0:02:58.1]} 3... Nc7 {[%clk 0:03:01]} 4. Nc3
{[%clk 0:02:57]} 4... d5 {[%clk 0:03:01.3]} 5. Bf4 {[%clk 0:02:54.8]} 5... Nf6
{[%clk 0:02:57.1]} 6. e3 {[%clk 0:02:54.4]} 6... Ne6 {[%clk 0:02:51.1]} 7. Be5
{[%clk 0:02:50.9]} 7... dxc4 {[%clk 0:02:42.8]} 8. Bxc4 {[%clk 0:02:49.2]} 8...
Ng4 {[%clk 0:02:42.8]} 9. Bg3 {[%clk 0:02:48.4]} 9... g6 {[%clk 0:02:41]} 10.
O-O {[%clk 0:02:39.5]} 10... Bg7 {[%clk 0:02:41]} 11. h3 {[%clk 0:02:37.1]}
11... Nf6 {[%clk 0:02:40]} 12. Qe2 {[%clk 0:02:31.1]} 12... O-O {[%clk
0:02:39.6]} 13. a3 {[%clk 0:02:27.2]} 13... Nc7 {[%clk 0:02:37.3]} 14. e4 {[%clk
0:02:20.3]} 14... Nh5 {[%clk 0:02:22.3]} 15. Bh2 {[%clk 0:01:59.5]} 15... Ne6
{[%clk 0:02:22]} 16. d5 {[%clk 0:01:54.4]} 16... Nef4 {[%clk 0:02:16.7]} 17. Qe3
{[%clk 0:01:42.8]} 17... Bh6 {[%clk 0:02:16.9]} 18. Qd4 {[%clk 0:01:42.8]} 18...
Bxh3 {[%clk 0:01:54.3]} 19. gxh3 {[%clk 0:01:38.6]} 19... Qd7 {[%clk 0:01:51.9]}
20. Ne1 {[%clk 0:01:19.7]} 20... Qxh3 {[%clk 0:01:50.5]} 21. Ne2 {[%clk
0:01:08.3]} 21... Qg4+ {[%clk 0:01:43.6]} 22. Ng3 {[%clk 0:01:06.8]} 22... cxd5
{[%clk 0:01:42]} 23. Bd3 {[%clk 0:00:34.7]} 23... Rad8 {[%clk 0:01:30.4]} 24.
Qe3 {[%clk 0:00:33.5]} 24... Nh3+ {[%clk 0:01:26.9]} 0-1

[Event "Late-Titled-Tuesday-Blitz-June-04-2024"]
[Site "Chess.com"]
[Date "2024.06.04"]
[Round "3"]
[White "ChessSG1"]
[Black "AldokhinIvan"]
[Result "1-0"]
[WhiteElo "2482"]
[BlackElo "2637"]
[TimeControl "180+1"]
[EndTime "14:25:42 PDT"]
[Termination "ChessSG1 won on time"]

1. c4 {[%clk 0:02:53.5]} 1... Nf6 {[%clk 0:02:56.3]} 2. g3 {[%clk 0:02:53.7]}
2... g6 {[%clk 0:02:56.9]} 3. Bg2 {[%clk 0:02:54.3]} 3... Bg7 {[%clk 0:02:57.6]}
4. Nc3 {[%clk 0:02:54.8]} 4... O-O {[%clk 0:02:58.3]} 5. e4 {[%clk 0:02:55.2]}
5... d6 {[%clk 0:02:59]} 6. Nge2 {[%clk 0:02:54.9]} 6... Nbd7 {[%clk 0:02:59.6]}
7. O-O {[%clk 0:02:54.3]} 7... e5 {[%clk 0:03:00.1]} 8. d3 {[%clk 0:02:54.5]}
8... Ne8 {[%clk 0:02:56.5]} 9. Be3 {[%clk 0:02:53.8]} 9... f5 {[%clk 0:02:56.6]}
10. d4 {[%clk 0:02:49]} 10... Nef6 {[%clk 0:02:51.4]} 11. exf5 {[%clk
0:02:46.4]} 11... gxf5 {[%clk 0:02:50.7]} 12. dxe5 {[%clk 0:02:38.8]} 12... Nxe5
{[%clk 0:02:48.6]} 13. h3 {[%clk 0:02:34.9]} 13... Kh8 {[%clk 0:02:44.9]} 14. b3
{[%clk 0:02:33.5]} 14... Qe8 {[%clk 0:02:28.4]} 15. Re1 {[%clk 0:02:31.5]} 15...
Qf7 {[%clk 0:02:16.5]} 16. Rc1 {[%clk 0:02:30.7]} 16... a6 {[%clk 0:02:12.4]}
17. Nf4 {[%clk 0:02:29.1]} 17... Ng6 {[%clk 0:02:08.4]} 18. Nxg6+ {[%clk
0:02:10.9]} 18... Qxg6 {[%clk 0:02:04.8]} 19. c5 {[%clk 0:02:10.6]} 19... Nh5
{[%clk 0:01:58.5]} 20. Bf3 {[%clk 0:01:57.5]} 20... Nf6 {[%clk 0:00:50.3]} 21.
cxd6 {[%clk 0:01:56.7]} 21... f4 {[%clk 0:00:50.5]} 22. Bxf4 {[%clk 0:01:48.9]}
1-0

[Event "Late-Titled-Tuesday-Blitz-June-04-2024"]
[Site "Chess.com"]
[Date "2024.06.04"]
[Round "3"]
[White "ACollins05"]
[Black "xasid81"]
[Result "0-1"]
[WhiteElo "2446"]
[BlackElo "2635"]
[TimeControl "180+1"]
[EndTime "14:25:49 PDT"]
[Termination "xasid81 won by resignation"]

1. Nf3 {[%clk 0:02:56.5]} 1... a6 {[%clk 0:02:49.9]} 2. e4 {[%clk 0:02:55.3]}
2... c6 {[%clk 0:02:48.6]} 3. d4 {[%clk 0:02:52.6]} 3... d5 {[%clk 0:02:49.5]}
4. Nc3 {[%clk 0:02:51.9]} 4... dxe4 {[%clk 0:02:48.6]} 5. Nxe4 {[%clk
0:02:52.8]} 5... Nf6 {[%clk 0:02:49.3]} 6. Bd3 {[%clk 0:02:51.1]} 6... Nxe4
{[%clk 0:02:48.5]} 7. Bxe4 {[%clk 0:02:52]} 7... Bf5 {[%clk 0:02:48.8]} 8. Bxf5
{[%clk 0:02:50.4]} 8... Qa5+ {[%clk 0:02:48.9]} 9. c3 {[%clk 0:02:50.7]} 9...
Qxf5 {[%clk 0:02:49.5]} 10. O-O {[%clk 0:02:51.3]} 10... Nd7 {[%clk 0:02:47.3]}
11. Re1 {[%clk 0:02:51.7]} 11... e6 {[%clk 0:02:47.4]} 12. Ne5 {[%clk
0:02:50.1]} 12... Nxe5 {[%clk 0:02:39.4]} 13. Rxe5 {[%clk 0:02:51]} 13... Qg6
{[%clk 0:02:35.7]} 14. Qf3 {[%clk 0:02:48.1]} 14... Bd6 {[%clk 0:02:32.6]} 15.
Rg5 {[%clk 0:02:46.1]} 15... Qf6 {[%clk 0:02:32.1]} 16. Qxf6 {[%clk 0:02:39.6]}
16... gxf6 {[%clk 0:02:33]} 17. Rh5 {[%clk 0:02:40.2]} 17... Ke7 {[%clk
0:02:28.5]} 18. Be3 {[%clk 0:02:38.8]} 18... Rag8 {[%clk 0:02:27.6]} 19. a4
{[%clk 0:02:38.5]} 19... f5 {[%clk 0:02:20.1]} 20. Kf1 {[%clk 0:02:34.4]} 20...
Rg6 {[%clk 0:02:12.9]} 21. g3 {[%clk 0:02:32.6]} 21... Kd7 {[%clk 0:02:09.1]}
22. Ke2 {[%clk 0:02:32.1]} 22... Rf6 {[%clk 0:01:59.8]} 23. f4 {[%clk
0:02:24.6]} 23... Rg6 {[%clk 0:01:59]} 24. Kd3 {[%clk 0:02:22]} 24... h6 {[%clk
0:01:56.4]} 25. b4 {[%clk 0:02:13.4]} 25... Ra8 {[%clk 0:01:53.8]} 26. a5 {[%clk
0:02:07.7]} 26... Ke7 {[%clk 0:01:49.5]} 27. Rg1 {[%clk 0:02:03.5]} 27... Rh8
{[%clk 0:01:45.9]} 28. Ke2 {[%clk 0:02:02.9]} 28... Kf8 {[%clk 0:01:39.5]} 29.
Kf3 {[%clk 0:02:01.9]} 29... Rhg8 {[%clk 0:01:33.8]} 30. h3 {[%clk 0:01:59.5]}
30... Be7 {[%clk 0:01:29.9]} 31. g4 {[%clk 0:01:59.3]} 31... fxg4+ {[%clk
0:01:28.8]} 32. Rxg4 {[%clk 0:01:54.3]} 32... f5 {[%clk 0:01:25.3]} 33. Rxg6
{[%clk 0:01:49.9]} 33... Rxg6 {[%clk 0:01:26.2]} 34. Bf2 {[%clk 0:01:49.7]}
34... Kf7 {[%clk 0:01:11.5]} 35. Ke3 {[%clk 0:01:39.5]} 35... Rf6 {[%clk
0:00:51.5]} 36. Bh4 {[%clk 0:01:38.9]} 36... Kg6 {[%clk 0:00:48.8]} 37. Bxf6
{[%clk 0:01:37.2]} 37... Bxf6 {[%clk 0:00:49.7]} 38. Rxh6+ {[%clk 0:01:35]}
38... Kxh6 {[%clk 0:00:50.6]} 39. Kf3 {[%clk 0:01:34.7]} 39... Kh5 {[%clk
0:00:50.5]} 40. Kg3 {[%clk 0:01:33.4]} 40... Bh4+ {[%clk 0:00:50.4]} 41. Kg2
{[%clk 0:01:33.5]} 41... Be1 {[%clk 0:00:51.3]} 0-1

[Event "Late-Titled-Tuesday-Blitz-June-04-2024"]
[Site "Chess.com"]
[Date "2024.06.04"]
[Round "3"]
[White "albayo"]
[Black "katharinareinecke"]
[Result "1-0"]
[WhiteElo "2335"]
[BlackElo "1965"]
[TimeControl "180+1"]
[EndTime "14:25:52 PDT"]
[Termination "albayo won by resignation"]

1. e4 {[%clk 0:02:59.3]} 1... c6 {[%clk 0:02:59.8]} 2. d4 {[%clk 0:02:53.6]}
2... d5 {[%clk 0:02:59.5]} 3. exd5 {[%clk 0:02:54.5]} 3... cxd5 {[%clk
0:02:59.6]} 4. Bd3 {[%clk 0:02:55.4]} 4... Nc6 {[%clk 0:02:59.1]} 5. c3 {[%clk
0:02:55.9]} 5... Qc7 {[%clk 0:02:57.7]} 6. h3 {[%clk 0:02:54.9]} 6... g6 {[%clk
0:02:50]} 7. Ne2 {[%clk 0:02:50.3]} 7... Bf5 {[%clk 0:02:49.1]} 8. Bf4 {[%clk
0:02:49]} 8... Qc8 {[%clk 0:02:39.1]} 9. O-O {[%clk 0:02:48.1]} 9... Bxd3 {[%clk
0:02:37.5]} 10. Qxd3 {[%clk 0:02:49]} 10... Bg7 {[%clk 0:02:37.9]} 11. Nd2
{[%clk 0:02:41.4]} 11... e6 {[%clk 0:02:36.9]} 12. c4 {[%clk 0:02:25.7]} 12...
Nge7 {[%clk 0:02:17]} 13. Bd6 {[%clk 0:02:19.4]} 13... O-O {[%clk 0:02:13.2]}
14. cxd5 {[%clk 0:02:17.7]} 14... exd5 {[%clk 0:02:04.9]} 15. Rac1 {[%clk
0:02:18.2]} 15... Re8 {[%clk 0:01:58.4]} 16. Nf3 {[%clk 0:02:15.9]} 16... Nf5
{[%clk 0:01:53.2]} 17. Ba3 {[%clk 0:02:13]} 17... Qe6 {[%clk 0:01:34.5]} 18. Nf4
{[%clk 0:02:11.8]} 18... Qd7 {[%clk 0:01:31.3]} 19. Rfe1 {[%clk 0:02:09.8]}
19... Rxe1+ {[%clk 0:01:21.3]} 20. Rxe1 {[%clk 0:02:10.7]} 20... Re8 {[%clk
0:01:20.9]} 21. Rxe8+ {[%clk 0:02:08.2]} 21... Qxe8 {[%clk 0:01:18.2]} 22. Nxd5
{[%clk 0:02:08.4]} 22... Ncxd4 {[%clk 0:01:06]} 23. Nxd4 {[%clk 0:02:00.7]}
23... Nxd4 {[%clk 0:00:45]} 24. Ne7+ {[%clk 0:01:52.6]} 24... Kh8 {[%clk
0:00:42.6]} 25. Qe4 {[%clk 0:01:52.4]} 25... b6 {[%clk 0:00:27]} 26. Nxg6+
{[%clk 0:01:38.9]} 26... hxg6 {[%clk 0:00:21.2]} 27. Qxe8+ {[%clk 0:01:39.7]}
27... Kh7 {[%clk 0:00:21.5]} 28. Qxf7 {[%clk 0:01:39]} 1-0

[Event "Late-Titled-Tuesday-Blitz-June-04-2024"]
[Site "Chess.com"]
[Date "2024.06.04"]
[Round "3"]
[White "Oleg_Papayan"]
[Black "rhwr"]
[Result "1-0"]
[WhiteElo "2563"]
[BlackElo "2284"]
[TimeControl "180+1"]
[EndTime "14:25:57 PDT"]
[Termination "Oleg_Papayan won by resignation"]

1. e4 {[%clk 0:03:00.9]} 1... c5 {[%clk 0:02:59.3]} 2. d4 {[%clk 0:03:00.8]}
2... Nf6 {[%clk 0:02:55.9]} 3. e5 {[%clk 0:03:00.1]} 3... Nd5 {[%clk 0:02:55.9]}
4. c4 {[%clk 0:02:53.7]} 4... Nb6 {[%clk 0:02:54.9]} 5. dxc5 {[%clk 0:02:50.7]}
5... e6 {[%clk 0:02:39.8]} 6. cxb6 {[%clk 0:02:50.4]} 6... Qxb6 {[%clk
0:02:40.7]} 7. Nf3 {[%clk 0:02:31]} 7... Nc6 {[%clk 0:02:38.9]} 8. Bd3 {[%clk
0:02:19.2]} 8... Qc7 {[%clk 0:02:32.1]} 9. Qe2 {[%clk 0:02:14.4]} 9... d6 {[%clk
0:02:30.4]} 10. exd6 {[%clk 0:02:13.7]} 10... Bxd6 {[%clk 0:02:30.2]} 11. O-O
{[%clk 0:02:11.9]} 11... Bd7 {[%clk 0:02:30.1]} 12. Nc3 {[%clk 0:02:07]} 12...
a6 {[%clk 0:02:30.6]} 13. Ne4 {[%clk 0:02:06.1]} 13... Be7 {[%clk 0:02:30.9]}
14. c5 {[%clk 0:01:52.2]} 14... Rd8 {[%clk 0:02:30.3]} 15. Be3 {[%clk
0:01:46.4]} 15... h6 {[%clk 0:02:29.5]} 16. Rfd1 {[%clk 0:01:44.7]} 16... O-O
{[%clk 0:02:29]} 17. Nd6 {[%clk 0:01:42.8]} 17... f5 {[%clk 0:02:25.3]} 18. Bc4
{[%clk 0:01:36.7]} 18... Na5 {[%clk 0:02:16.9]} 19. b4 {[%clk 0:01:29]} 19...
Nxc4 {[%clk 0:02:15.4]} 20. Qxc4 {[%clk 0:01:24.4]} 20... b5 {[%clk 0:02:11.6]}
21. cxb6 {[%clk 0:01:18.5]} 21... Qxc4 {[%clk 0:02:09.7]} 22. Nxc4 {[%clk
0:01:18.7]} 22... Bxb4 {[%clk 0:02:10.6]} 23. Nfe5 {[%clk 0:01:13.8]} 23... Ba4
{[%clk 0:02:09.6]} 24. Rxd8 {[%clk 0:01:12]} 24... Rxd8 {[%clk 0:02:10.1]} 25.
Rb1 {[%clk 0:01:04.2]} 25... Bc2 {[%clk 0:01:58.7]} 26. Rc1 {[%clk 0:01:04.1]}
26... Be4 {[%clk 0:01:56.1]} 27. f3 {[%clk 0:01:01.9]} 27... Bb7 {[%clk
0:01:55]} 28. a3 {[%clk 0:00:59.5]} 28... Be7 {[%clk 0:01:52.9]} 29. Na5 {[%clk
0:00:58.1]} 29... Bd5 {[%clk 0:01:51.7]} 30. Bc5 {[%clk 0:00:54.1]} 30... Bg5
{[%clk 0:01:50.3]} 31. Rd1 {[%clk 0:00:46.8]} 31... Rc8 {[%clk 0:01:50.4]} 32.
b7 {[%clk 0:00:43.1]} 32... Rb8 {[%clk 0:01:44.7]} 33. Nd7 {[%clk 0:00:34.6]}
33... Bf4 {[%clk 0:01:38]} 34. Nxb8 {[%clk 0:00:33.8]} 34... Bxb8 {[%clk
0:01:38.9]} 35. Rxd5 {[%clk 0:00:32.9]} 35... exd5 {[%clk 0:01:38.6]} 36. Nc6
{[%clk 0:00:33.4]} 36... Bf4 {[%clk 0:01:38.5]} 37. g3 {[%clk 0:00:33]} 37...
Bc7 {[%clk 0:01:37.9]} 1-0

[Event "Late-Titled-Tuesday-Blitz-June-04-2024"]
[Site "Chess.com"]
[Date "2024.06.04"]
[Round "3"]
[White "simaopdias"]
[Black "Chessdreamer2020"]
[Result "0-1"]
[WhiteElo "2221"]
[BlackElo "2527"]
[TimeControl "180+1"]
[EndTime "14:26:02 PDT"]
[Termination "Chessdreamer2020 won by resignation"]

1. e4 {[%clk 0:03:00.6]} 1... d6 {[%clk 0:02:38.1]} 2. Nc3 {[%clk 0:02:59.8]}
2... Nf6 {[%clk 0:02:38.1]} 3. d4 {[%clk 0:02:59.7]} 3... c6 {[%clk 0:02:38]} 4.
Bg5 {[%clk 0:02:56.1]} 4... Nbd7 {[%clk 0:02:36.9]} 5. Qd2 {[%clk 0:02:55.4]}
5... e5 {[%clk 0:02:35.6]} 6. dxe5 {[%clk 0:02:51.8]} 6... dxe5 {[%clk
0:02:35.4]} 7. O-O-O {[%clk 0:02:51.9]} 7... Qa5 {[%clk 0:02:35.3]} 8. Kb1
{[%clk 0:02:50.4]} 8... Bb4 {[%clk 0:02:34.9]} 9. f3 {[%clk 0:02:42.3]} 9...
Bxc3 {[%clk 0:02:34.3]} 10. Qxc3 {[%clk 0:02:42.5]} 10... Qxc3 {[%clk
0:02:34.5]} 11. bxc3 {[%clk 0:02:43.4]} 11... h6 {[%clk 0:02:34.8]} 12. Be3
{[%clk 0:02:42.9]} 12... b6 {[%clk 0:02:28.9]} 13. Bc4 {[%clk 0:02:40]} 13... b5
{[%clk 0:02:26.9]} 14. Bb3 {[%clk 0:02:39.9]} 14... a5 {[%clk 0:02:27]} 15. a4
{[%clk 0:02:40.1]} 15... Rb8 {[%clk 0:02:22.8]} 16. Ka2 {[%clk 0:02:37.9]} 16...
Nb6 {[%clk 0:02:13.4]} 17. Bxb6 {[%clk 0:02:17.9]} 17... Rxb6 {[%clk 0:02:13.1]}
18. Ne2 {[%clk 0:02:17.3]} 18... Ke7 {[%clk 0:02:12.7]} 19. Rd2 {[%clk
0:02:15.8]} 19... Rd8 {[%clk 0:02:10.2]} 20. Rhd1 {[%clk 0:02:15.9]} 20... Rxd2
{[%clk 0:02:10]} 21. Rxd2 {[%clk 0:02:16.3]} 21... Nd7 {[%clk 0:02:06.7]} 22.
axb5 {[%clk 0:02:09]} 22... cxb5 {[%clk 0:02:06.2]} 23. Bd5 {[%clk 0:02:03.9]}
23... Nf6 {[%clk 0:02:03.2]} 24. Ng3 {[%clk 0:02:03.1]} 24... Nxd5 {[%clk
0:02:00.8]} 25. Rxd5 {[%clk 0:02:02.3]} 25... Be6 {[%clk 0:02:00.6]} 26. Nf5+
{[%clk 0:01:57]} 26... Kf8 {[%clk 0:01:58]} 27. Ne3 {[%clk 0:01:57.4]} 27...
Bxd5+ {[%clk 0:01:47.7]} 28. Nxd5 {[%clk 0:01:55.2]} 28... Rg6 {[%clk
0:01:47.4]} 29. g3 {[%clk 0:01:53.9]} 29... Rc6 {[%clk 0:01:41.8]} 30. Kb3
{[%clk 0:01:51.8]} 30... Ke8 {[%clk 0:01:37.5]} 31. Ne3 {[%clk 0:01:46.9]} 31...
g6 {[%clk 0:01:36.1]} 32. Nd5 {[%clk 0:01:43.3]} 32... Kd7 {[%clk 0:01:32.6]}
33. Ka3 {[%clk 0:01:43]} 33... Ke6 {[%clk 0:01:31.9]} 34. Kb3 {[%clk 0:01:41.6]}
34... f5 {[%clk 0:01:32.2]} 35. Ka3 {[%clk 0:01:38.1]} 35... Rc5 {[%clk
0:01:26.9]} 36. Kb3 {[%clk 0:01:00.5]} 36... Rxd5 {[%clk 0:01:26.2]} 37. exd5+
{[%clk 0:00:59.7]} 37... Kxd5 {[%clk 0:01:27.1]} 0-1

[Event "Late-Titled-Tuesday-Blitz-June-04-2024"]
[Site "Chess.com"]
[Date "2024.06.04"]
[Round "3"]
[White "osielchesslover2011"]
[Black "pavelalexandru07"]
[Result "0-1"]
[WhiteElo "2228"]
[BlackElo "2464"]
[TimeControl "180+1"]
[EndTime "14:26:07 PDT"]
[Termination "pavelalexandru07 won on time"]

1. e4 {[%clk 0:03:00.9]} 1... c5 {[%clk 0:03:00.1]} 2. Nf3 {[%clk 0:02:59.7]}
2... d6 {[%clk 0:03:00.3]} 3. d4 {[%clk 0:03:00]} 3... cxd4 {[%clk 0:02:59.8]}
4. Nxd4 {[%clk 0:03:00.3]} 4... Nf6 {[%clk 0:03:00.4]} 5. Nc3 {[%clk 0:02:59.6]}
5... a6 {[%clk 0:03:00.7]} 6. Bg5 {[%clk 0:03:00.1]} 6... Nbd7 {[%clk
0:02:58.8]} 7. f4 {[%clk 0:03:00.3]} 7... Qc7 {[%clk 0:02:56.7]} 8. Qf3 {[%clk
0:03:00.2]} 8... h6 {[%clk 0:02:57.1]} 9. Bh4 {[%clk 0:02:58.5]} 9... g5 {[%clk
0:02:57.4]} 10. fxg5 {[%clk 0:02:57.8]} 10... hxg5 {[%clk 0:02:58.1]} 11. Bg3
{[%clk 0:02:46.6]} 11... Nc5 {[%clk 0:02:35.4]} 12. Nf5 {[%clk 0:01:48.5]} 12...
Ncd7 {[%clk 0:01:43.8]} 13. O-O-O {[%clk 0:01:16.2]} 13... g4 {[%clk 0:01:43.9]}
14. Qe3 {[%clk 0:00:17.8]} 14... Ne5 {[%clk 0:01:40.5]} 15. Bxe5 {[%clk
0:00:16.4]} 15... dxe5 {[%clk 0:01:40.7]} 16. Kb1 {[%clk 0:00:11.4]} 16... e6
{[%clk 0:01:39.6]} 17. Ng3 {[%clk 0:00:09]} 17... Be7 {[%clk 0:01:39.6]} 18. Bd3
{[%clk 0:00:08.4]} 18... Bd7 {[%clk 0:01:34.2]} 19. Rhf1 {[%clk 0:00:08.3]}
19... O-O-O {[%clk 0:01:31.6]} 20. Be2 {[%clk 0:00:04]} 20... Rxh2 {[%clk
0:01:26.8]} 21. Qg1 {[%clk 0:00:01.1]} 21... Rdh8 {[%clk 0:01:24.9]} 0-1

[Event "Late-Titled-Tuesday-Blitz-June-04-2024"]
[Site "Chess.com"]
[Date "2024.06.04"]
[Round "3"]
[White "GMthekingindian"]
[Black "Sanyura"]
[Result "1-0"]
[WhiteElo "2367"]
[BlackElo "2548"]
[TimeControl "180+1"]
[EndTime "14:26:09 PDT"]
[Termination "GMthekingindian won by resignation"]

1. e4 {[%clk 0:03:00.9]} 1... c5 {[%clk 0:02:59.4]} 2. Nf3 {[%clk 0:03:01]} 2...
Nc6 {[%clk 0:02:56.1]} 3. c3 {[%clk 0:03:00.6]} 3... g6 {[%clk 0:02:55.3]} 4. d4
{[%clk 0:03:00.2]} 4... cxd4 {[%clk 0:02:56.2]} 5. cxd4 {[%clk 0:02:59.6]} 5...
d5 {[%clk 0:02:56.3]} 6. exd5 {[%clk 0:03:00.5]} 6... Qxd5 {[%clk 0:02:55.5]} 7.
Nc3 {[%clk 0:02:58.7]} 7... Qa5 {[%clk 0:02:55.2]} 8. d5 {[%clk 0:02:51.4]} 8...
Nb8 {[%clk 0:02:55.4]} 9. Qd4 {[%clk 0:02:30.4]} 9... Nf6 {[%clk 0:02:54.3]} 10.
d6 {[%clk 0:02:30.8]} 10... Nc6 {[%clk 0:02:53.4]} 11. Bb5 {[%clk 0:02:30.2]}
11... Bd7 {[%clk 0:02:51.8]} 12. Bxc6 {[%clk 0:02:21.2]} 12... Bxc6 {[%clk
0:02:52.7]} 13. O-O {[%clk 0:02:18.9]} 13... O-O-O {[%clk 0:02:49.5]} 14. Bf4
{[%clk 0:02:05.4]} 14... Bg7 {[%clk 0:02:46.7]} 15. b4 {[%clk 0:02:04.6]} 15...
Qf5 {[%clk 0:02:39.3]} 16. Rac1 {[%clk 0:01:27.1]} 16... Nh5 {[%clk 0:02:14.7]}
17. Qxa7 {[%clk 0:00:48.4]} 17... Nxf4 {[%clk 0:02:08.3]} 18. b5 {[%clk
0:00:10.5]} 18... Qg4 {[%clk 0:02:08.1]} 19. Qa8+ {[%clk 0:00:04.9]} 19... Kd7
{[%clk 0:02:07.5]} 20. bxc6+ {[%clk 0:00:05.4]} 20... Kxd6 {[%clk 0:01:44.8]}
21. Rfd1+ {[%clk 0:00:04.4]} 21... Ke6 {[%clk 0:01:45.3]} 22. Re1+ {[%clk
0:00:01.6]} 22... Kf5 {[%clk 0:01:37.2]} 23. Qa5+ {[%clk 0:00:01.4]} 23... Rd5
{[%clk 0:01:37.8]} 24. Qxd5+ {[%clk 0:00:01.3]} 24... Nxd5 {[%clk 0:01:38]} 25.
Nxd5 {[%clk 0:00:01.6]} 25... e5 {[%clk 0:01:37.9]} 26. Ne3+ {[%clk 0:00:01.9]}
26... Kf4 {[%clk 0:01:37.4]} 27. Nxg4 {[%clk 0:00:02.8]} 27... Kxg4 {[%clk
0:01:38.3]} 28. c7 {[%clk 0:00:02.9]} 28... Rc8 {[%clk 0:01:37.8]} 29. Re4+
{[%clk 0:00:03.6]} 29... Kf5 {[%clk 0:01:38]} 30. Re2 {[%clk 0:00:04.5]} 30...
Ke6 {[%clk 0:01:38.6]} 31. Rd2 {[%clk 0:00:05.2]} 31... f5 {[%clk 0:01:38.3]}
32. Rd8 {[%clk 0:00:06.1]} 1-0